fUSD/lending_fUSD_20260324
["ID","MTS","AMOUNT","RATE_DAILY","PERIOD"]
[408841493,1774338743578,-1087.11023261,0.00042575,2]
[408841494,1774338743588,-300.0,0.00042575,2]
[408841495,1774338743598,-300.0,0.00042575,2]
[408841496,1774338743607,-1138.08646443,0.00042575,2]
[408841497,1774338743617,-1087.11023261,0.00042575,2]
[408841498,1774338743627,-300.0,0.00042575,2]
[408841499,1774338743636,-300.0,0.00042575,2]
[408841500,1774338743647,-1091.22109593,0.00042575,2]
[408841501,1774338743656,-300.5840733,0.00042575,2]
[408841502,1774338743667,-500.0,0.00042575,120]
[408841503,1774338743676,-1569.0,0.00042686,16]
[408841504,1774338743686,-500.0,0.00042712,120]
[408841505,1774338743696,-150.0,0.00042737,30]
[408841506,1774338743706,-2735.451747,0.00042738,60]
[408841507,1774338743715,-2735.45174699,0.00042738,60]
[408841508,1774338743725,-7983.17716998,0.00042739,30]
[408841509,1774338743736,-7983.17716998,0.00042739,30]
[408841510,1774338743746,-7983.17716998,0.00042739,30]
[408841511,1774338743756,-743.4779064,0.00042739,120]
[408841512,1774338743766,-590.67,0.00042739,120]
[408841513,1774338743776,-1000.0,0.00042739,120]
[408841514,1774338743786,-500.0,0.00042739,120]
[408841515,1774338743799,-593.63798423,0.00042739,120]
[408841516,1774338743809,-602.88763915,0.00042739,120]
[408841517,1774338743819,-500.0,0.00042739,120]
[408841518,1774338743829,-296.21283124,0.00042739,120]
[408841519,1774338743840,-537.53478421,0.00042739,120]
[408841520,1774338743850,-500.0,0.00042739,120]
[408841521,1774338743860,-500.0,0.00042739,120]
[408841522,1774338743869,-500.0,0.00042739,120]
[408841523,1774338743879,-705.66,0.00042739,120]
[408841524,1774338743890,-943.74,0.00042739,120]
[408841525,1774338743900,-500.0,0.00042739,120]
[408841526,1774338743909,-261.94595884,0.00042739,120]
[408841527,1774338743919,-205.37511779,0.00042739,120]
[408841528,1774338743929,-500.0,0.00042739,120]
[408841529,1774338743938,-500.0,0.00042739,120]
[408841530,1774338743949,-507.3,0.00042739,120]
[408841531,1774338743959,-568.39,0.00042739,120]
[408841532,1774338743968,-500.0,0.00042739,120]
[408841533,1774338743979,-729.64,0.00042739,120]
[408841534,1774338743989,-500.0,0.00042739,120]
[408841535,1774338743998,-639.9,0.00042739,120]
[408841536,1774338744008,-200.39494717,0.00042739,120]
[408841537,1774338744018,-500.0,0.00042739,30]
[408841538,1774338744028,-500.0,0.00042739,14]
[408841539,1774338744038,-500.0,0.00042739,30]
[408841540,1774338744047,-651.21,0.00042739,120]
[408841541,1774338744057,-500.0,0.00042739,120]
[408841542,1774338744067,-524.6,0.00042739,120]
[408841543,1774338744077,-978.66,0.00042739,120]
[408841544,1774338744086,-500.0,0.00042739,30]
[408841545,1774338744096,-1180.13,0.00042739,120]
[408841546,1774338744106,-500.0,0.00042739,120]
[408841547,1774338744115,-500.0,0.00042739,120]
[408841548,1774338744125,-500.0,0.00042739,120]
[408841549,1774338744135,-574.37,0.00042739,120]
[408841550,1774338744147,-500.0,0.00042739,120]
[408841551,1774338744156,-500.0,0.00042739,120]
[408841552,1774338744166,-1281.45,0.00042739,120]
[408841553,1774338744176,-1329.75,0.00042739,120]
[408841554,1774338744185,-500.0,0.00042739,120]
[408841555,1774338744195,-500.0,0.00042739,120]
[408841556,1774338744205,-500.0,0.00042739,90]
[408841557,1774338744214,-500.0,0.00042739,120]
[408841558,1774338744223,-500.0,0.00042739,120]
[408841559,1774338744232,-500.0,0.00042739,120]
[408841560,1774338744242,-557.08547751,0.00042739,120]
[408841561,1774338744252,-880.66,0.00042739,5]
[408841562,1774338744262,-599.98,0.00042739,120]
[408841563,1774338744271,-1076.85,0.00042739,120]
[408841564,1774338744281,-651.22,0.00042739,120]
[408841565,1774338744290,-500.0,0.00042739,120]
[408841566,1774338744299,-500.0,0.00042739,120]
[408841567,1774338744309,-539.9,0.00042739,120]
[408841568,1774338744319,-604.85,0.00042739,120]
[408841569,1774338744328,-500.0,0.00042739,120]
[408841570,1774338744338,-766.13,0.00042739,120]
[408841571,1774338744347,-617.48,0.00042739,120]
[408841572,1774338744357,-500.0,0.00042739,120]
[408841573,1774338744367,-835.56,0.00042739,120]
[408841574,1774338744378,-792.41,0.00042739,120]
[408841575,1774338744392,-500.0,0.00042739,120]
[408841576,1774338744402,-500.0,0.00042739,120]
[408841577,1774338744411,-186.18,0.00042739,120]
[408841578,1774338744423,-647.69299913,0.00042739,120]
[408841579,1774338744432,-500.0,0.00042739,120]
[408841580,1774338744441,-500.0,0.00042739,120]
[408841581,1774338744452,-500.0,0.00042739,120]
[408841582,1774338744462,-1234.56,0.00042739,120]
[408841583,1774338744471,-500.0,0.00042739,120]
[408841584,1774338744480,-890.18,0.00042739,120]
[408841585,1774338744490,-500.0,0.00042739,120]
[408841586,1774338744500,-500.0,0.00042739,120]
[408841587,1774338744509,-500.0,0.00042739,120]
[408841588,1774338744519,-500.0,0.00042739,120]
[408841589,1774338744528,-1024.48,0.00042739,120]
[408841590,1774338744538,-500.0,0.00042739,120]
[408841591,1774338744547,-500.0,0.00042739,120]
[408841592,1774338744557,-500.0,0.00042739,120]
[408841593,1774338744570,-500.0,0.00042739,120]
[408841594,1774338744580,-766.51,0.00042739,120]
[408841595,1774338744589,-500.0,0.00042739,120]
[408841596,1774338744599,-677.14,0.00042739,120]
[408841597,1774338744608,-2135.18,0.00042739,120]
[408841598,1774338744618,-346.76613711,0.00042739,120]
[408841599,1774338744627,-563.34,0.00042739,120]
[408841600,1774338744637,-1402.94,0.00042739,120]
[408841601,1774338744650,-761.77,0.00042739,120]
[408841602,1774338744661,-1465.28,0.00042739,120]
[408841603,1774338744671,-500.0,0.00042739,120]
[408841604,1774338744681,-497.89554429,0.00042739,120]
[408841605,1774338744690,-500.0,0.00042739,120]
[408841606,1774338744700,-500.0,0.00042739,120]
[408841607,1774338744710,-500.0,0.00042739,120]
[408841608,1774338744720,-598.21,0.00042739,120]
[408841609,1774338744730,-500.0,0.00042739,120]
[408841610,1774338744739,-1412.93,0.00042739,120]
[408841611,1774338744749,-500.0,0.00042739,120]
[408841612,1774338744759,-615.62954415,0.00042739,7]
[408841613,1774338744769,-500.0,0.00042739,120]
[408841614,1774338744779,-500.0,0.00042739,120]
[408841615,1774338744788,-846.4,0.00042739,120]
[408841616,1774338744797,-500.0,0.00042739,120]
[408841617,1774338744806,-500.0,0.00042739,120]
[408841618,1774338744816,-804.53,0.00042739,120]
[408841619,1774338744825,-967.16,0.00042739,120]
[408841620,1774338744835,-862.09,0.00042739,120]
[408841621,1774338744845,-500.0,0.00042739,120]
[408841622,1774338744854,-649.68,0.00042739,120]
[408841623,1774338744863,-897.41,0.00042739,120]
[408841624,1774338744873,-500.0,0.00042739,120]
[408841625,1774338744883,-500.0,0.00042739,120]
[408841626,1774338744895,-500.0,0.00042739,120]
[408841627,1774338744904,-1647.3,0.00042739,120]
[408841628,1774338744914,-500.0,0.00042739,120]
[408841629,1774338744924,-500.0,0.00042739,120]
[408841630,1774338744933,-500.0,0.00042739,120]
[408841631,1774338744943,-500.0,0.00042739,120]
[408841632,1774338744952,-500.0,0.00042739,120]
[408841633,1774338744962,-500.0,0.00042739,120]
[408841634,1774338744972,-932.54,0.00042739,120]
[408841635,1774338744981,-1817.92,0.00042739,120]
[408841636,1774338744990,-227.30978732,0.00042739,120]
[408841637,1774338744999,-500.0,0.00042739,120]
[408841638,1774338745009,-500.0,0.00042739,120]
[408841639,1774338745018,-500.0,0.00042739,120]
[408841640,1774338745027,-500.0,0.00042739,120]
[408841641,1774338745037,-1328.91,0.00042739,120]
[408841642,1774338745046,-1294.19,0.00042739,120]
[408841643,1774338745055,-500.0,0.00042739,120]
[408841644,1774338745065,-500.0,0.00042739,120]
[408841645,1774338745075,-500.0,0.00042739,120]
[408841646,1774338745084,-3681.23,0.00042739,120]
[408841647,1774338745094,-500.0,0.00042739,120]
[408841648,1774338745103,-500.0,0.00042739,120]
[408841649,1774338745112,-500.0,0.00042739,120]
[408841650,1774338745121,-500.0,0.00042739,120]
[408841651,1774338745131,-644.74,0.00042739,120]
[408841652,1774338745141,-500.0,0.00042739,120]
[408841653,1774338745150,-688.63,0.00042739,120]
[408841654,1774338745160,-500.0,0.00042739,120]
[408841655,1774338745169,-572.14,0.00042739,120]
[408841656,1774338745179,-500.0,0.00042739,120]
[408841657,1774338745188,-500.0,0.00042739,120]
[408841658,1774338745197,-500.0,0.00042739,120]
[408841659,1774338745206,-1109.47,0.00042739,120]
[408841660,1774338745216,-500.0,0.00042739,120]
[408841661,1774338745225,-500.0,0.00042739,120]
[408841662,1774338745234,-500.0,0.00042739,120]
[408841663,1774338745243,-1361.64,0.00042739,120]
[408841664,1774338745253,-500.0,0.00042739,120]
[408841665,1774338745262,-1113.98,0.00042739,120]
[408841666,1774338745271,-500.0,0.00042739,120]
[408841667,1774338745280,-500.0,0.00042739,120]
[408841668,1774338745289,-500.0,0.00042739,120]
[408841669,1774338745298,-500.0,0.00042739,120]
[408841670,1774338745308,-500.0,0.00042739,120]
[408841671,1774338745317,-454.69385605,0.00042739,120]
[408841672,1774338745327,-629.05599089,0.00042739,120]
[408841673,1774338745340,-804.84,0.00042739,120]
[408841674,1774338745506,-587.8,0.00042739,120]
[408841675,1774338745516,-895.35,0.00042739,120]
[408841676,1774338745526,-500.0,0.00042739,120]
[408841677,1774338745536,-506.30675388,0.00042739,15]
[408841678,1774338745548,-500.0,0.00042739,120]
[408841679,1774338745558,-640.6,0.00042739,120]
[408841680,1774338745568,-500.0,0.00042739,120]
[408841681,1774338745578,-500.0,0.00042739,120]
[408841682,1774338745587,-500.0,0.00042739,120]
[408841683,1774338745596,-500.0,0.00042739,120]
[408841684,1774338745605,-500.0,0.00042739,120]
[408841685,1774338745615,-500.0,0.00042739,2]
[408841686,1774338745624,-1353.62,0.00042739,120]
[408841687,1774338745633,-500.0,0.00042739,120]
[408841688,1774338745643,-219.26143629,0.00042739,120]
[408841689,1774338745653,-663.05,0.00042739,120]
[408841690,1774338745662,-500.0,0.00042739,120]
[408841691,1774338745671,-500.0,0.00042739,120]
[408841692,1774338745680,-2022.99,0.00042739,120]
[408841693,1774338745689,-422.2039586,0.00042739,120]
[408841694,1774338745699,-500.0,0.00042739,120]
[408841695,1774338745708,-993.61,0.00042739,120]
[408841696,1774338745718,-500.0,0.00042739,120]
[408841697,1774338745727,-500.0,0.00042739,120]
[408841698,1774338745736,-500.0,0.00042739,120]
[408841699,1774338745746,-526.3,0.00042739,120]
[408841700,1774338745755,-500.0,0.00042739,120]
[408841701,1774338745764,-803.74,0.00042739,120]
[408841702,1774338745774,-541.07426409,0.00042739,120]
[408841703,1774338745783,-500.0,0.00042739,120]
[408841704,1774338745792,-500.0,0.00042739,120]
[408841705,1774338745801,-500.0,0.00042739,120]
[408841706,1774338745811,-593.39,0.00042739,120]
[408841707,1774338745819,-773.48,0.00042739,120]
[408841708,1774338745829,-500.0,0.00042739,120]
[408841709,1774338745838,-500.0,0.00042739,120]
[408841710,1774338745847,-500.0,0.00042739,120]
[408841711,1774338745856,-500.0,0.00042739,120]
[408841712,1774338745866,-500.0,0.00042739,120]
[408841713,1774338745875,-500.0,0.00042739,120]
[408841714,1774338745884,-500.0,0.00042739,120]
[408841715,1774338745895,-1169.17,0.00042739,120]
[408841716,1774338745904,-500.0,0.00042739,120]
[408841717,1774338745913,-500.0,0.00042739,120]
[408841718,1774338745922,-500.0,0.00042739,120]
[408841719,1774338745931,-500.0,0.00042739,120]
[408841720,1774338745940,-500.0,0.00042739,120]
[408841721,1774338745949,-1339.98,0.00042739,120]
[408841722,1774338745958,-500.0,0.00042739,120]
[408841723,1774338745968,-500.0,0.00042739,120]
[408841724,1774338745977,-599.34,0.00042739,120]
[408841725,1774338745988,-551.15,0.00042739,120]
[408841726,1774338745998,-500.0,0.00042739,120]
[408841727,1774338746007,-1698.32,0.00042739,120]
[408841728,1774338746020,-1450.66,0.00042739,120]
[408841729,1774338746028,-500.0,0.00042739,120]
[408841730,1774338746037,-500.0,0.00042739,120]
[408841731,1774338746046,-818.03,0.00042739,120]
[408841732,1774338746058,-620.94,0.00042739,2]
[408841733,1774338746067,-500.0,0.00042739,120]
[408841734,1774338746076,-500.0,0.00042739,120]
[408841735,1774338746085,-500.0,0.00042739,120]
[408841736,1774338746095,-500.0,0.00042739,120]
[408841737,1774338746104,-500.0,0.00042739,120]
[408841738,1774338746114,-500.0,0.00042739,120]
[408841739,1774338746124,-500.0,0.00042739,120]
[408841740,1774338746133,-500.0,0.00042739,120]
[408841741,1774338746143,-500.0,0.00042739,120]
[408841742,1774338746152,-500.0,0.00042739,120]
[408841743,1774338746162,-500.0,0.00042739,120]
[408841744,1774338746171,-1515.34,0.00042739,120]
[408841745,1774338746180,-500.0,0.00042739,120]
[408841746,1774338746190,-500.0,0.00042739,120]
[408841747,1774338746199,-500.0,0.00042739,120]
[408841748,1774338746208,-500.0,0.00042739,120]
[408841749,1774338746217,-1009.33,0.00042739,120]
[408841750,1774338746227,-4192.59,0.00042739,120]
[408841751,1774338746236,-500.0,0.00042739,120]
[408841752,1774338746246,-500.0,0.00042739,120]
[408841753,1774338746255,-500.0,0.00042739,120]
[408841754,1774338746264,-2475.9,0.00042739,120]
[408841755,1774338746274,-434.33851357,0.00042739,120]
[408841756,1774338746283,-500.0,0.00042739,120]
[408841757,1774338746293,-500.0,0.00042739,120]
[408841758,1774338746302,-2035.37,0.00042739,120]
[408841759,1774338746312,-500.0,0.00042739,120]
[408841760,1774338746322,-500.0,0.00042739,120]
[408841761,1774338746332,-500.0,0.00042739,120]
[408841762,1774338746342,-411.61103421,0.00042739,120]
[408841763,1774338746352,-857.75,0.00042739,120]
[408841764,1774338746362,-944.17,0.00042739,120]
[408841765,1774338746372,-500.0,0.00042739,120]
[408841766,1774338746387,-500.0,0.00042739,120]
[408841767,1774338746396,-1317.86,0.00042739,30]
[408841768,1774338746405,-500.0,0.00042739,120]
[408841769,1774338746415,-500.0,0.00042739,120]
[408841770,1774338746425,-826.35,0.00042739,120]
[408841771,1774338746435,-588.23,0.00042739,120]
[408841772,1774338746444,-1144.87,0.00042739,120]
[408841773,1774338746454,-500.0,0.00042739,120]
[408841774,1774338746464,-500.0,0.00042739,120]
[408841775,1774338746473,-500.0,0.00042739,120]
[408841776,1774338746483,-895.15,0.00042739,120]
[408841777,1774338746492,-800.0,0.00042739,120]
[408841778,1774338746502,-500.0,0.00042739,120]
[408841779,1774338746511,-1197.62,0.00042739,120]
[408841780,1774338746520,-500.0,0.00042739,120]
[408841781,1774338746529,-1494.6,0.00042739,120]
[408841782,1774338746539,-1086.62,0.00042739,120]
[408841783,1774338746548,-500.0,0.00042739,120]
[408841784,1774338746557,-500.0,0.00042739,120]
[408841785,1774338746567,-500.0,0.00042739,120]
[408841786,1774338746577,-500.0,0.00042739,120]
[408841787,1774338746586,-946.8,0.00042739,120]
[408841788,1774338746596,-500.0,0.00042739,120]
[408841789,1774338746605,-713.74,0.00042739,120]
[408841790,1774338746615,-6072.1,0.00042739,120]
[408841791,1774338746625,-826.7,0.00042739,120]
[408841792,1774338746635,-1989.66,0.00042739,30]
[408841793,1774338746646,-552.86,0.00042739,120]
[408841794,1774338746656,-926.79,0.00042739,120]
[408841795,1774338746666,-500.0,0.00042739,120]
[408841796,1774338746675,-500.0,0.00042739,120]
[408841797,1774338746685,-500.0,0.00042739,120]
[408841798,1774338746694,-2329.55,0.00042739,120]
[408841799,1774338746703,-500.0,0.00042739,120]
[408841800,1774338746712,-500.0,0.00042739,120]
[408841801,1774338746722,-847.68,0.00042739,120]
[408841802,1774338746731,-1646.81,0.00042739,120]
[408841803,1774338746741,-1090.68,0.00042739,120]
[408841804,1774338746750,-500.0,0.00042739,120]
[408841805,1774338746760,-1885.93,0.00042739,120]
[408841806,1774338746769,-741.6,0.00042739,120]
[408841807,1774338746779,-500.0,0.00042739,120]
[408841808,1774338746788,-727.16,0.00042739,120]
[408841809,1774338746797,-261.0771406,0.00042739,120]
[408841810,1774338746807,-712.06,0.00042739,120]
[408841811,1774338746817,-5833.33,0.00042739,120]
[408841812,1774338746826,-2107.35,0.00042739,120]
[408841813,1774338746836,-500.0,0.00042739,120]
[408841814,1774338746846,-500.0,0.00042739,120]
[408841815,1774338746856,-500.0,0.00042739,120]
[408841816,1774338746865,-500.0,0.00042739,120]
[408841817,1774338746875,-617.58,0.00042739,120]
[408841818,1774338746885,-500.0,0.00042739,120]
[408841819,1774338746896,-267.44118549,0.00042739,120]
[408841820,1774338746905,-2133.23,0.00042739,120]
[408841821,1774338746914,-500.0,0.00042739,120]
[408841822,1774338746923,-1039.39,0.00042739,120]
[408841823,1774338746933,-2468.56,0.00042739,120]
[408841824,1774338746942,-1366.12,0.00042739,120]
[408841825,1774338746952,-500.0,0.00042739,120]
[408841826,1774338746961,-500.0,0.00042739,120]
[408841827,1774338746971,-1016.32,0.00042739,120]
[408841828,1774338746982,-500.0,0.00042739,120]
[408841829,1774338746991,-784.59,0.00042739,120]
[408841830,1774338747001,-1478.69,0.00042739,120]
[408841831,1774338747011,-500.0,0.00042739,120]
[408841832,1774338747021,-1107.99,0.00042739,120]
[408841833,1774338747030,-1259.9,0.00042739,120]
[408841834,1774338747040,-1114.05,0.00042739,120]
[408841835,1774338747050,-1519.93,0.00042739,120]
[408841836,1774338747060,-646.06,0.00042739,120]
[408841837,1774338747070,-500.0,0.00042739,120]
[408841838,1774338747081,-1266.58,0.00042739,120]
[408841839,1774338747090,-500.0,0.00042739,120]
[408841840,1774338747100,-500.0,0.00042739,120]
[408841841,1774338747110,-500.0,0.00042739,120]
[408841842,1774338747120,-1009.25,0.00042739,120]
[408841843,1774338747130,-392.31646381,0.00042739,120]
[408841844,1774338747139,-707.37,0.00042739,120]
[408841845,1774338747149,-1156.03,0.00042739,14]
[408841846,1774338747159,-200.36731436,0.00042739,120]
[408841847,1774338747169,-999.55,0.00042739,120]
[408841848,1774338747179,-970.63,0.00042739,120]
[408841849,1774338747189,-500.0,0.00042739,120]
[408841850,1774338747199,-650.62,0.00042739,30]
[408841851,1774338747209,-725.53,0.00042739,120]
[408841852,1774338747219,-500.0,0.00042739,120]
[408841853,1774338747229,-1014.92,0.00042739,120]
[408841854,1774338747238,-500.0,0.00042739,120]
[408841855,1774338747248,-2689.33,0.00042739,120]
[408841856,1774338747258,-500.0,0.00042739,120]
[408841857,1774338747267,-500.0,0.00042739,120]
[408841858,1774338747276,-500.0,0.00042739,120]
[408841859,1774338747288,-500.0,0.00042739,120]
[408841860,1774338747298,-1544.85,0.00042739,120]
[408841861,1774338747307,-500.0,0.00042739,120]
[408841862,1774338747317,-500.0,0.00042739,120]
[408841863,1774338747327,-1269.14,0.00042739,120]
[408841864,1774338747337,-500.0,0.00042739,120]
[408841865,1774338747347,-500.0,0.00042739,120]
[408841866,1774338747358,-665.15,0.00042739,120]
[408841867,1774338747367,-500.0,0.00042739,120]
[408841868,1774338747377,-680.42,0.00042739,120]
[408841869,1774338747389,-500.0,0.00042739,120]
[408841870,1774338747399,-500.0,0.00042739,120]
[408841871,1774338747409,-500.0,0.00042739,120]
[408841872,1774338747419,-500.0,0.00042739,120]
[408841873,1774338747429,-500.0,0.00042739,120]
[408841874,1774338747440,-1769.26,0.00042739,120]
[408841875,1774338747450,-512.42,0.00042739,120]
[408841876,1774338747459,-500.0,0.00042739,120]
[408841877,1774338747471,-500.0,0.00042739,120]
[408841878,1774338747481,-500.0,0.00042739,120]
[408841879,1774338747490,-500.0,0.00042739,120]
[408841880,1774338747500,-500.0,0.00042739,120]
[408841881,1774338747510,-408.67764902,0.00042739,120]
[408841882,1774338747519,-500.0,0.00042739,120]
[408841883,1774338747529,-500.0,0.00042739,120]
[408841884,1774338747538,-500.0,0.00042739,120]
[408841885,1774338747547,-1705.77,0.00042739,120]
[408841886,1774338747557,-500.0,0.00042739,120]
[408841887,1774338747566,-978.43,0.00042739,120]
[408841888,1774338747576,-500.0,0.00042739,120]
[408841889,1774338747586,-500.0,0.00042739,120]
[408841890,1774338747595,-500.0,0.00042739,120]
[408841891,1774338747613,-500.0,0.00042739,120]
[408841892,1774338747626,-500.0,0.00042739,120]
[408841893,1774338747636,-500.0,0.00042739,120]
[408841894,1774338747647,-500.0,0.00042739,120]
[408841895,1774338747657,-500.0,0.00042739,120]
[408841896,1774338747667,-500.0,0.00042739,120]
[408841897,1774338747678,-500.0,0.00042739,120]
[408841898,1774338747688,-500.0,0.00042739,120]
[408841899,1774338747699,-1215.44,0.00042739,120]
[408841900,1774338747709,-500.0,0.00042739,120]
[408841901,1774338747720,-500.0,0.00042739,120]
[408841902,1774338747731,-500.0,0.00042739,120]
[408841903,1774338747741,-1046.27,0.00042739,120]
[408841904,1774338747751,-500.0,0.00042739,120]
[408841905,1774338747761,-500.0,0.00042739,120]
[408841906,1774338747771,-1613.72,0.00042739,120]
[408841907,1774338747782,-1897.96,0.00042739,120]
[408841908,1774338747792,-770.58,0.00042739,120]
[408841909,1774338747802,-1960.33,0.00042739,120]
[408841910,1774338747812,-500.0,0.00042739,120]
[408841911,1774338747822,-3056.27,0.00042739,120]
[408841912,1774338747831,-500.0,0.00042739,120]
[408841913,1774338747841,-1228.99,0.00042739,120]
[408841914,1774338747850,-258.65880763,0.00042739,120]
[408841915,1774338747860,-680.28,0.00042739,120]
[408841916,1774338747870,-500.0,0.00042739,60]
[408841917,1774338747880,-500.0,0.00042739,120]
[408841918,1774338747890,-769.44,0.00042739,120]
[408841919,1774338747901,-500.0,0.00042739,120]
[408841920,1774338747911,-500.0,0.00042739,120]
[408841921,1774338747921,-500.0,0.00042739,120]
[408841922,1774338747931,-500.0,0.00042739,120]
[408841923,1774338747941,-855.78,0.00042739,120]
[408841924,1774338747951,-503.023684,0.00042739,120]
[408841925,1774338747961,-500.0,0.00042739,120]
[408841926,1774338747970,-1780.32,0.00042739,120]
[408841927,1774338747980,-1078.9,0.00042739,120]
[408841928,1774338747989,-1099.3,0.00042739,120]
[408841929,1774338747999,-699.82,0.00042739,120]
[408841930,1774338748009,-759.17,0.00042739,120]
[408841931,1774338748018,-500.0,0.00042739,120]
[408841932,1774338748028,-500.0,0.00042739,120]
[408841933,1774338748038,-500.0,0.00042739,120]
[408841934,1774338748048,-931.09,0.00042739,120]
[408841935,1774338748057,-815.17,0.00042739,120]
[408841936,1774338748067,-500.0,0.00042739,120]
[408841937,1774338748076,-656.8,0.00042739,120]
[408841938,1774338748087,-500.0,0.00042739,120]
[408841939,1774338748096,-500.0,0.00042739,120]
[408841940,1774338748106,-500.0,0.00042739,120]
[408841941,1774338748116,-500.0,0.00042739,120]
[408841942,1774338748125,-500.0,0.00042739,120]
[408841943,1774338748135,-671.25,0.00042739,120]
[408841944,1774338748144,-500.0,0.00042739,120]
[408841945,1774338748153,-614.51,0.00042739,120]
[408841946,1774338748163,-1323.85,0.00042739,7]
[408841947,1774338748173,-500.0,0.00042739,14]
[408841948,1774338748182,-500.0,0.00042739,120]
[408841949,1774338748192,-984.57,0.00042739,120]
[408841950,1774338748202,-500.0,0.00042739,120]
[408841951,1774338748212,-500.0,0.00042739,120]
[408841952,1774338748222,-729.45,0.00042739,120]
[408841953,1774338748232,-500.0,0.00042739,120]
[408841954,1774338748242,-500.0,0.00042739,120]
[408841955,1774338748252,-926.4,0.00042739,120]
[408841956,1774338748263,-1291.11,0.00042739,120]
[408841957,1774338748273,-560.4,0.00042739,120]
[408841958,1774338748283,-617.21,0.00042739,120]
[408841959,1774338748293,-500.0,0.00042739,120]
[408841960,1774338748302,-1726.06,0.00042739,120]
[408841961,1774338748311,-500.0,0.00042739,120]
[408841962,1774338748321,-500.0,0.00042739,120]
[408841963,1774338748331,-500.0,0.00042739,120]
[408841964,1774338748342,-500.0,0.00042739,120]
[408841965,1774338748352,-500.0,0.00042739,120]
[408841966,1774338748362,-1356.13,0.00042739,120]
[408841967,1774338748371,-801.87,0.00042739,120]
[408841968,1774338748381,-500.0,0.00042739,120]
[408841969,1774338748396,-500.0,0.00042739,120]
[408841970,1774338748406,-2922.62,0.00042739,60]
[408841971,1774338748415,-821.12,0.00042739,120]
[408841972,1774338748426,-665.38,0.00042739,120]
[408841973,1774338748435,-500.0,0.00042739,120]
[408841974,1774338748445,-500.0,0.00042739,120]
[408841975,1774338748455,-866.85,0.00042739,120]
[408841976,1774338748465,-500.0,0.00042739,120]
[408841977,1774338748475,-500.0,0.00042739,120]
[408841978,1774338748484,-500.0,0.00042739,120]
[408841979,1774338748494,-500.0,0.00042739,120]
[408841980,1774338748504,-2859.83,0.00042739,120]
[408841981,1774338748513,-500.0,0.00042739,120]
[408841982,1774338748523,-500.0,0.00042739,120]
[408841983,1774338748533,-644.49,0.00042739,120]
[408841984,1774338748543,-4166.66,0.00042739,120]
[408841985,1774338748552,-719.59,0.00042739,120]
[408841986,1774338748561,-500.0,0.00042739,120]
[408841987,1774338748571,-679.57,0.00042739,120]
[408841988,1774338748580,-500.0,0.00042739,120]
[408841989,1774338748590,-599.93,0.00042739,120]
[408841990,1774338748600,-500.0,0.00042739,120]
[408841991,1774338748609,-500.0,0.00042739,120]
[408841992,1774338748620,-500.0,0.00042739,120]